{"text_format":"3","workbook":"xlsx","n_sheets":3,"sheets":["Лист1","Лист2","Лист3"],"not_rendered":{"defined_names":1,"comments":1},"read":"whole","date_system":"1900"}

{"sheet":"Лист1","index":0,"n_rows":138,"n_cols":12,"rows_kept":138,"merged":[[2,8,2,9],[38,1,38,2],[62,5,62,6],[63,1,63,2],[82,1,82,2],[98,1,98,2],[106,0,106,3],[110,1,110,2],[120,1,120,3]]}
[]
[null,"ФИО","город","Наименование уч.заведения","номинация","программа выступления","ФИО преподавателя, концертмейстера"]
[null,"младшая возрастная категория  ",{"$nulls":5},"хронометраж"]
[1,"Сабитова Рената 4 года","Нижнекамск","Нижнекамский музыкальный колледж им.С.Сайдашева",null,"А.Гурилев \"Домик-крошечка\" 1,30","преп. Шарафутдинова Зульфия Венеровна, конц. Сагидуллина Рэмзия Гаптелгазизовна",1,10,0,{"$f":"I4","v":10},{"$f":"J4+H4","v":1}]
[2,"Зиятдинова Алия 14.09.2010 -7 лет","Нижнекамск","МБУ ДО «Детская музыкальная школа №6» НМР РТ","ученик","П.Чайковский. Л.Дацюк «Немецкая песенка» "," преп. Анисимова Любовь Васильевна, конц. Данилова Юлия Михайловна ",2,{"$f":"K4","v":10},{"$f":"L4+1","v":2},{"$f":"I5","v":10},{"$f":"J5+H5","v":4}]
[3,"Трошкина Софья Владиславовна 04.09.2009 - 8 лет","Набережные Челны","МАУДО г.Набережные Челны «Детская музыкальная школа №5»,","ученик","муз. Л. Бетховена, сл. Г. Бюргера «Малиновка»","преп. Мистахова Айгуль Илдусовна, конц. Закирова Кадрия Асгатевна",2,{"$f":"K5","v":10},{"$f":"L5+1","v":5},{"$f":"I6","v":10},{"$f":"J6+H6","v":7}]
[4,"Каримова Рената Рустамовна 28.06.2010-7лет","Нижнекамск","МБУ ДО «Центр детского творчества»","ученик","Муз. А.И. Островского , сл.З.Петровой «Спят усталые игрушки»2,5","преп. и конц. Коркина Эльмира Фирусовна",3,10,8,10,11]
[5,"Гильманова Наиля Маратовна 13.05.2010 -8 лет","Нижнекамск","МБУДО ДМХШ \"Мечта\"","ученик","Муз. М. Парцхаладзе, сл. Н. Чачава, рус. текст В. Татаринова «Ласточки прилетели» 3мин.","преп. Мифтяхова Ляйсан Ильдаровна, конц. Нырова Антонина Викторовна ",2,10,12,10,14]
[6,"Лукошина  Евгения Олеговна 07.08.2008 - 9лет","Нижнекамск","МБУДО ДМХШ \"Мечта\"","ученик","Муз. А.Н. Пахмутовой, сл. Н. Н. Добронравова «Добрая сказка» 3,4","преп. Мифтяхова Ляйсан Ильдаровна, конц. Нырова Антонина Викторовна ",4,10,15,10,19]
[7,"Вагапов Каюм Русланович 25.07.2009-8 лет","Нижнекамск","МБУ ДО «Центр детского творчества»","ученик","Английская баллада «Слуги короля Артура» 2","преп. и конц. Коркина Эльмира Фирусовна",2,10,20,10,22]
[8,"Карпова Эвелина Александровна 10.03.2009-9 лет","Нижнекамск","МБУДО ДМХШ \"Мечта\"","ученик","А. Морозов, песня «На ромашке я гадаю» 2,5"," преп. Ольга Михайловна Саперова, конц. Нелли Валентиновна Яковлева",3,10,23,10,26]
[9,"Исмакаев Айнур Альбертович 19.10.2009 8 лет","Набережные Челны","МАУДО г.Набережные Челны «Детская музыкальная школа №5»,","ученик","И.Шамсетдинов «Кунелле балачак»","преп. Мистахова Айгуль Илдусовна, конц. Закирова Кадрия Асгатевна",3,10,27,10,30]
[10,"Гайниахметова Ралия Радиковна 30.10.2009 - 8 лет","Нижнекамск","МБУ ДО «Детская музыкальная школа № 2»","ученик","Муз. и сл.Л.Щуровой «Мы грибы искали»2","преп. и конц. Коркина Эльмира Фирусовна",3,10,31,10,34]
[11,"Шатилова Елена Витальевна 01.10.2009 -8лет","Набережные Челны","Муниципальное бюджетное учреждение дополнительного образования «ДЕТСКАЯ МУЗЫКАЛЬНАЯ ШКОЛА №3»","ученик","муз.  Н. Потоловского, сл. Н. Новикова «Метель»","преп. Булатова Ирина Сергеевна, конц. Назмеева Камила Керимовна",1,10,35,10,36]
[12,"Шарипова Разана Альбертовна 09.02.2011 7 лет","Нижнекамск","МБУ ДО \"Детская музыкальная школа №1\" НМР РТ","ученик","Муз. Я. Дубравина, сл. Е. Руженцева \"Родная земля\"","преп. Якунина Ирина Владимировна конц Гнатишина Ирина Викторовна",1,10,37,10,38]
[13,"Слепова Ульяна 23.01.2009-9лет","Нижнекамск","МБУ ДО \"Детская школа искусств \"Созвездие\"","ученик"," муз.Ф.Шуберт «Колыбельная песня»2","преп. Кириллова Кристина Петровна, конц.Андреева Вероника Петровна",1,10,39,10,40]
[14,"Бусыгина Диана 04.09.2011-6 лет","Нижнекамск","МБУ ДО «Детская музыкальная школа №6» НМР РТ","ученик","С. Поплянова, Н.Пикулева «Весёлые медвежатки» "," преп. Анисимова Любовь Васильевна, конц. Данилова Юлия Михайловна ",2,10,41,10,43]
[15,"Никитина Виктория Сергеевна 27.08.10 -7лет","Нижнекамск","МБУДО ДМХШ \"Мечта\"","ученик","«Котинька-коток» муз.А.Лядова,  сл.народные -1,5мин.","Нурмухамедова Гульнара Рустемовна Нырова Антонина Викторовна",3,10,44,10,47]
[16,"Найденко Надежда Викторовна 05.07.11г. - 6 лет","Нижнекамск","МБУДО ДМХШ \"Мечта\"","любитель","«Коза и детки» М.М.Ипполитова-Иванова, сл.народные -1мин.","Нурмухамедова Гульнара Рустемовна Андреева Вероника Петровна ",3,10,48,10,51]
[17,"Швец Вероника Олеговна 24.07.2009 - 8 лет","Набережные Челны","Муниципальное бюджетное учреждение дополнительного образования «ДЕТСКАЯ МУЗЫКАЛЬНАЯ ШКОЛА №3»","ученик","муз. Й. Брамс, сл. Г. Шерера рус. текст А. Машистова «Колыбельная песня»","преп. Шишкина Анна Анатольевна, конц. Галиханова Регина Габдулловна",3,10,52,10,55]
[18,"Гильфанова Амина Ильдусовна 30.10.2009 8 лет","Набережные Челны","Муниципальное бюджетное учреждение дополнительного образования «ДЕТСКАЯ МУЗЫКАЛЬНАЯ ШКОЛА №3»","ученик","Муз. Ц. Кюи, сл. А. Плещеева «Лето»","преп. Шишкина Анна Анатольевна, конц. Галиханова Регина Габдулловна"]
[19,"Маннапова Анастасия Витальевна 11.02.2009  - 9 лет","Набережные Челны","МАУДО г.Набережные Челны «Детская музыкальная школа №5»,","ученик","Р.Шуман «Пестрый мотылек»","преп. Мистахова Айгуль Илдусовна, конц. Огнева Ирина Сергеевна"]
[20,"Агалтдинова Азиза Ильшатовна 26.12.20013 4 года","Набережные Челны","Муниципальное бюджетное учреждение дополнительного образования «ДЕТСКАЯ МУЗЫКАЛЬНАЯ ШКОЛА №3»","ученик","муз. Й. Гайдн, сл. П. Синявского «Мы дружим с музыкой»","преп. Гимадиева Гузелия Наилевна, конц. Газизова Марина Андреевна"]
[21,"Фатхутдинова Ильвина  15.01.2009 - 9лет","Нижнекамск","МБУДО ДМХШ \"Мечта\"","ученик","\"Мотылек\" ","преп. Ольга Михайловна Саперова, конц. Нелли Валентиновна Яковлева"]
[22,"Илалова София Тимуровна 26.07.2008 - 9 лет ","Нижнекамск","МБУДО ДМХШ \"Мечта\"","ученик","муз. А.Морозов «Сказка» 2,5мин."," преп. Ольга Михайловна Саперова, конц. Нелли Валентиновна Яковлева"]
[23,"Быстрова Софья Сергеевна 23.04.08-9лет","Нижнекамск","МБУДО ДМХШ \"Мечта\"","ученик","Муз. Р.Шумана, сл. неизв.автора «О тех, кто хранит покой детей» 1мин.","преп. Нурмухамедова Гульнара Рустемовна, конц.Колчанова Капитолина Николаевна "]
[24,"Шеина Елизавета Сергеевна 09.01.2009 - 9 лет","Нижнекамск","МБУДО ДМХШ \"Мечта\"","ученик","Муз.М.Кольяшкина,Сл.В.Татаринова «Слон и скрипочка» ","преп. Малиновская Ольга Николаевна, конц.Нырова Антонина Викторовна"]
[25,"Хамидуллина Диана Равилевна 13.03.2009 -9 лет","Нижнекамск","МБУДО ДМХШ \"Мечта\"","ученик","Муз.М.Ипполитова-Иванова, Сл.народные «Кукареку,петушок»","преп. Малиновская Ольга Николаевна, конц. Колчанова Капитолина Николаевна"]
[26,"Колчерина Юлия Александровна 22.07.2008 - 9 лет ","Нижнекамск","Детская православная певческая школа при храме Романа Сладкопевца ","ученик","муз. и ст.А.Морозова \"Льдинка\"","Преп. Саперова Ольга Михайловна, конц. Банных Наталья Петровна"]
[27,"Амирханова Сюмбель Гумеровна 15.09.2011 -7 лет","Нижнекамск","МБУ ДО «Центр детского творчества»","ученик","Музыка В. Мурадели, слова М.Садовского «Солнечный зайчик» 2 мин.","преп. и конц. Коркина Эльмира Фирусовна"]
[28,"Сираева Айлин 20.12.2009 -8 лет","Нижнекамск","МБУДО ДМХШ \"Мечта\"","ученик","муз. Э.Гумпердинка, обработка М. Иорданского  «Стоит стар человечек»","преп. Игошина Виктория Васильевна, конц. Нырова Антонина Викторовна"]
[]
[]
[]
[]
[{"$nulls":7},{"$f":"SUM(H4:H20)","v":39}]
[]
[]
[null,"I средняя категория"]
[1,"Фаскеева Альмира 10 лет, 18.02.2008","Нижнекамск","МБУДО ДМХШ \"Мечта\"","ученик","муз. Л.Бетховена, сл. Г.Бюргера «Малиновка»  ","преп. Игошина Виктория Васильевна, конц. Нырова Антонина Викторовна",3,11,0,{"$f":"I40","v":11},{"$f":"J40+H40","v":3}]
[2,"Сергейчева Валерия 30.03.2007 - 11лет","Нижнекамск","МБУ ДО «Детская школа искусств «Созвездие»","ученик","В.А.Моцарт «Тоска по весне» (1,5 мин)","Преп.: Кириллова Кристина Петровна, конц.: Андреева Вероника Петровна",3,{"$f":"K40","v":11},{"$f":"L40+1","v":4},{"$f":"I41","v":11},{"$f":"J41+H41","v":7}]
[3,"Хабиева Аделина Ильдаровна 25.04.2005 - 12 лет","Набережные Челны","МАУДО г.Набережные Челны «Детская музыкальная школа №5»,","ученик","Й.Гайдн «Одна хожу я в поле»","преп. Мистахова Айгуль Илдусовна, конц. Огнева Ирина Сергеевна",3,{"$f":"K41","v":11},{"$f":"L41+1","v":8},{"$f":"I42","v":11},{"$f":"J42+H42","v":11}]
[4,"Трошкина Дарья Владиславовна 12 лет (09.06.2005)","Набережные Челны","МАУДО г.Набережные Челны «Детская музыкальная школа №5»,","ученик","1.      Ф.Шопен «Думка»","преп. Мистахова Айгуль Илдусовна, конц. Закирова Кадрия Асгатевна",3,11,12,11,15]
[5,"Байрашева Каролина 24.03.2007 г.-11лет","Нижнекамск","МБУДО ДМХШ \"Мечта\"","ученик","Э.Григ «Заход солнца» (2 мин)","Преп.: Кириллова Кристина Петровна, конц.: Андреева Вероника Петровна",3,{"$f":"#REF!","v":{"$error":"#REF!"}},{"$f":"#REF!+1","v":{"$error":"#REF!"}},{"$error":"#REF!"},{"$error":"#REF!"}]
[6,"Шегапова Аниса 09.10.2007 г.-10 лет","Нижнекамск","МБУДО ДМХШ \"Мечта\"","ученик","Л.Бетховен «Гондолетта» (2 мин)","Преп.: Кириллова Кристина Петровна, конц.: Андреева Вероника Петровна",3,{"$error":"#REF!"},{"$error":"#REF!"},{"$error":"#REF!"},{"$error":"#REF!"}]
[7,"Шапорева Софья Романовна 29.03.2007 - 11 лет","Нижнекамск","Детская православная певческая школа при храме Романа Сладкопевца ","ученик","Муз.М.Глинки, сл. Кукольника \"Жаворонок\"","Преп. Саперова Ольга Михайловна, конц. Банных Наталья Петровна",3,{"$error":"#REF!"},{"$error":"#REF!"},{"$error":"#REF!"},{"$error":"#REF!"}]
[8,"Смоленкова Марина Валерьевна 28.08.2006 - 11лет","Нижнекамск","Детская православная певческая школа при храме Романа Сладкопевца ","ученик","Муз.Э.Грига, перевод С.Свириденко \"Заход солнца\"","Преп. Саперова Ольга Михайловна, конц. Банных Наталья Петровна",3,{"$error":"#REF!"},{"$error":"#REF!"},{"$error":"#REF!"},{"$error":"#REF!"}]
[9,"Мухаметзянова Зарина Ренатовна 21.06.2005г.р (12 лет)","Нижнекамск","МБУ ДО «ДМШ № 6» ","ученик","Муз.М.Шишкин,ст.Л.Г.,редакция М.Языкова романс «Ночь светла»","Преп. Файзулина Ирина Геннадьевна, конц. Андреева Вероника Петровна",3,{"$error":"#REF!"},{"$error":"#REF!"},{"$error":"#REF!"},{"$error":"#REF!"}]
[10,"Николаева Софья Сергеевна 22.01.2007г.р.(11 лет)","Нижнекамск","МБУ ДО «ДМШ № 6» ","ученик","Муз.И.Гайдна, р.т. П.Синявского «Старый добрый клавесин» (1 мин)","Преп. Файзулина Ирина Геннадьевна, конц. Андреева Вероника Петровна",3,{"$error":"#REF!"},{"$error":"#REF!"},{"$error":"#REF!"},{"$error":"#REF!"}]
[11,"Файзуллина Алина Рустамовна 13.12.2006г.р.(11 лет)","Нижнекамск","МБУ ДО «ДМШ № 6» ","ученик","Муз.Э.Гумпердинга, обр. М.Иорданского «Стоит старый человечек» (1 мин)","Преп. Файзулина Ирина Геннадьевна, конц. Андреева Вероника Петровна",3,{"$error":"#REF!"},{"$error":"#REF!"},{"$error":"#REF!"},{"$error":"#REF!"}]
[12,"Юлдашева Регина 14.01 2006 -12 лет","Нижнекамск","МБУ ДО «ДМШ № 6» ","ученик","Слова  и музыка Н.Листова «Я помню вальса звук прелестный» -3мин","Преп. Николаева Елена Леонидовна, конц. Волкова Надежда Ивановна",3,{"$error":"#REF!"},{"$error":"#REF!"},{"$error":"#REF!"},{"$error":"#REF!"}]
[13,"Рыжова Карина Константиновна (05.11.2007г.) -10 лет","Нижнекамск","МБУДО ДМХШ \"Мечта\"","ученик","«Божья коровка» муз.Й.Брамс, сл.нар. перевод Эм.Александровой (2,30 мин.)","преп. Нурмухамедова Гульнара Рустемовна, конц. Нырова Антонина Викторовна"]
[14,"Кожевникова Екатерина 03.12.2006 г.(11 лет)","Нижнекамск","МБУ ДО «ДМШ № 6» ","ученик","И.Дунаевский ,В. Лебедев-Кумач «Пиши не забывай» (1,5 мин.)"," преп. Анисимова Любовь Васильевна, конц. Данилова Юлия Михайловна "]
[15,"Ахметова Рената Раисовна 06.04.2006г. 12 лет","Нижнекамск","МБУДО ДМХШ \"Мечта\"","ученик","Муз. П. Булахова, сл. В. Чуевского «Гори, гори, моя звезда»  (2,50мин.)","рук. Мифтяхова Ляйсан Ильдаровна, конц. Имаева Эльмира Нилевна",{"$f":"SUM(H40:H51)","v":36}]
[16,"Питерская Аделина 10.05.2007- 10лет ","Набережные Челны","МАУ ДО «Детская школа искусств№13","ученик","«Сарафанчик» В.Алябьев - 2мин","преп. Вершинина Елена Рафиковна, конц. Кирпу Лилия Ивановна"]
[17,"Уланова Мария 15.03.2007 - 11 лет","Нижнекамск","МБУ ДО «ДМШ № 6» ","ученик","Ж.Векерлен «Приди поскорее, весна» (1,5 мин)"," преп. Анисимова Любовь Васильевна, конц. Данилова Юлия Михайловна "]
[18,"Чулкина Елизавета Владимировна 15.05.2005/г.-12 лет","Нижнекамск","МБУДО ДМХШ \"Мечта\"","ученик","Муз.В.Абаза, Стихи И.Тургенева «Утро туманное»","преп. Малиновская Ольга Николаевна, конц.Нырова Антонина Викторовна"]
[19,"Юсупова Полина Руслановна 09.11.2005 г.-12 лет","Нижнекамск","МБУДО ДМХШ \"Мечта\"","ученик","Муз. А.Варламова,Сл.Н.Цыганова «Красный сарафан»","преп. Малиновская Ольга Николаевна, конц.  Имаева Эльмира Наилевна"]
[20,"Нефёдова Ангелина Сергеевна 14.07.2005г. -12 лет","Нижнекамск","МБУДО ДМХШ \"Мечта\"","ученик","Муз. А. Алябьева , сл. А. Пушкина «Зимняя дорога»   ","преп.Мифтяхова Ляйсан Ильдаровна , конц.  Имаева Эльмира Наилевна"]
[21,"Низамов Данияр 06.12.2005 - 12 лет","Нижнекамск","МБУ ДО «Детская музыкальная школа №5","ученик","Муз.Т.Булахова, слова П.Вяземский «Тройка» 2,3 мин","преп. Вафина Альмира Ринатовна, конц. Рашитова Гульнара Равилевна "]
[]
[]
[{"$nulls":5},"Вручение дипломов младшей возрастной категории"]
[null,"II средняя категория"]
[1,"Ватлина Александра Клавдиевна 20.08.2004 13лет","Набережные Челны","Муниципальное бюджетное учреждение дополнительного образования «ДЕТСКАЯ МУЗЫКАЛЬНАЯ ШКОЛА №3»","ученик"," муз. В. Борисова, ст.Е. Дитерихс «Звезды на небе»","преп. Шишкина Анна Анатольевна, конц. Галиханова Регина Габдулловна",3,13,0,{"$f":"I65","v":13},{"$f":"J65+H65","v":3}]
[2,"Батырова Джамиля Алмазовна 25.05.2004-13 лет","Нижнекамск","МБУДО ДМХШ \"Мечта\"","ученик","Николай фон Вильм « Незабудка и ручей»","преп. Ольга Михайловна Саперова, конц. Нелли Валентиновна Яковлева",3,{"$f":"K65","v":13},{"$f":"L65+1","v":4},{"$f":"I66","v":13},{"$f":"J66+H66","v":7}]
[3,"Зотина Карина Денисовна 27.10.2004 13лет","Нижнекамск","МБУДО ДМХШ \"Мечта\"","ученик","Муз.М.Балакирева, Сл.А.Кольцова «Обойми, поцелуй»","преп. Малиновская Ольга Николаевна, конц. Имаева Эльмира Наилевна",3,{"$f":"K66","v":13},{"$f":"L66+1","v":8},{"$f":"I67","v":13},{"$f":"J67+H67","v":11}]
[4,"Жилина Дарья Владиславовна 05.12.2004 -13 лет","Нижнекамск","МБУДО ДМХШ \"Мечта\"","ученик","Муз. и стихи неизвестного автора. Обработка М.Сахарова «Тихо, так тихо»","преп. Малиновская Ольга Николаевна, конц.Нырова Антонина Викторовна",3,13,12,13,15]
[5,"Шегапова Алина Эдуардовна 12.02.2004 -14лет","Нижнекамск","МБУДО ДМХШ \"Мечта\"","ученик","Муз.А.Алябьева, Сл.А.Дельвига «И я выйду на крылечко»","преп. Малиновская Ольга Николаевна, конц. Колчанова Капитолина Николаевна",3,13,16,13,19]
[6,"Самсонова Валерия Олеговна 16.06.200314 лет","Нижнекамск","МБУДО ДМХШ \"Мечта\"","ученик","«В мире есть красавица одна» Шентирмай  ","преп. Ольга Михайловна Саперова, конц. Нелли Валентиновна Яковлева",3,13,20,13,23]
[7,"Игнатьева Екатерина Юрьевна 08.06.2003-14 лет","Нижнекамск","МБУДО ДМХШ \"Мечта\"","ученик","А.Л.Гурилёв «Право маменьке скажу» ( 3 мин.)","преп. Ольга Михайловна Саперова, конц. Нелли Валентиновна Яковлева",3,13,24,13,27]
[8,"Кашапова Илюза Линаровна 11.02.2004 -14 лет","Нижнекамск","МБУ ДО «Детская музыкальная школа № 2»","ученик","Музыка Гурилева, сл. А. Полежаева «Сарафанчик»","преп. и конц. Коркина Эльмира Фирусовна",3,13,28,13,31]
[9,"Набиуллина Резеда Рушановна 26.12.2003 -14лет","Нижнекамск","МБУ ДО «ДМШ № 6» ","ученик","Муз.Б.Фомина, ст. К.Подревского романс «Дорогой длинною» (2 мин)","Преп. Файзулина Ирина Геннадьевна, конц. Андреева Вероника Петровна",{"$f":"SUM(H65:H72)","v":24}]
[10,"Пименова Александра Анатольевна 13.11.2002 -15 лет","Нижнекамск","МБУ ДО «ДМШ № 6» ","ученик","Муз.А.Гурилев, ст.А.Полежаева «Сарафанчик» романс (2 мин)","Преп. Файзулина Ирина Геннадьевна, конц. Андреева Вероника Петровна"]
[11,"Маркова Алена Владимировна 03.06.2003 - 14 лет","Набережные Челны","МАУ ДО «Детская школа искусств№13","ученик","« Сердце- игрушка» муз. А. Гурилев, сл. Э. Губер, 1:00","преп. Муравьева Юлия Геннадьевна, конц. Кирпу Лилия Ивановна"]
[12,"Аршавская Анастасия Вячеславовна 01.04.2003-15 лет","Нижнекамск","Детская православная певческая школа при храме Романа Сладкопевца ","ученик","П.Булахов \"Колокольчики мои\"","Преп. Саперова Ольга Михайловна, конц. Банных Наталья Петровна"]
[13,"Смоленкова Ирина Валерьевна 10.02.2004 14 лет","Нижнекамск","Детская православная певческая школа при храме Романа Сладкопевца ","ученик","Муз.Николая фон Вильма \"Незабудка и ручей\"","Преп. Саперова Ольга Михайловна, конц. Банных Наталья Петровна"]
[14,"Аскарова Диляра 16.02.2004 14 лет","Набережные Челны","МАУ ДО «Детская школа искусств№13","ученик","А.Гурелев «Внутренняя музыка» 3мин","преп. Вершинина Елена Рафиковна, конц. Кирпу Лилия Ивановна",3]
[15,"Жарова Светлана Павловна 30.01.2004 -14 лет","Нижнекамск","Детская православная певческая школа при храме Романа Сладкопевца ","ученик","\"Я вижу образ твой\" А.Алябьев","Преп. Саперова Ольга Михайловна, конц. Банных Наталья Петровна"]
[16,"Федотова Владислава Александровна 26.07.2003 ","Нижнекамск","Детская православная певческая школа при храме Романа Сладкопевца ","ученик","Муз.М.Глинки, сл. А.Пушкина \"Не пой, красавица, при мне\"","Преп. Саперова Ольга Михайловна, конц. Банных Наталья Петровна"]
[17,"Шищук Софья 01.04.2003-15 лет","Нижнекамск","МБУДО ДМХШ \"Мечта\"","ученик","муз. и сл.Н. Листова «Я помню вальса звук прелестный...»","преп. Игошина Виктория Васильевна, конц. Нырова Антонина Викторовна"]
[18,"Валиахметова Регина 29.04.2004 13 лет","Нижнекамск","МБУДО ДМХШ \"Мечта\"","ученик","муз. Ж.Бизе, русский текст П.Бернацкого «Серенада Смита» из оперы  «Пертская красавица» ","преп. Игошина Виктория Васильевна, конц. Нырова Антонина Викторовна"]
[null,"Старшая возрастная категория"]
[1,"Тукова Анастасия Игоревна 27.07.1999 -17 лет","Нижнекамск","Нижнекамский музыкальный колледж им.С.Сайдашева хор.отделение","ученик","Муз. М.А.Балакирева, ст. М.Ю. Лермонтова \"Слышу ли голос твой\"","преп. Ольга Михайловна Саперова, конц. Коркина Эльмира Фирусовна",3]
[2,"Аршавская Александра Вячеславовна 21.04.2000-18 лет","Нижнекамск","Детская православная певческая школа при храме Романа Сладкопевца ","ученик","Муз.В.Абаза, ст.Тургенева \"Утро туманное\"","Преп. Саперова Ольга Михайловна, конц. Банных Наталья Петровна",3]
[3,"Аршавская Полина Вячеславовна 31.07.2001 - 17 лет","Нижнекамск","Детская православная певческая школа при храме Романа Сладкопевца ","ученик","Муз. А.Варламов \"Красный сарафан\"","Преп. Саперова Ольга Михайловна, конц. Банных Наталья Петровна",3]
[4,"Камалтдинова Амина Ильшатовна 29.10.2001- 17 лет","Нижнекамск","МБУ ДО «Детская музыкальная школа № 2»","ученик","Муз. В.Борисова, сл. Е. Дитерихса “Звезды на небе”","преп. и конц. Коркина Эльмира Фирусовна",3]
[5,"Журавлёва Елена Евгеньевна 27.03.2002 16 лет","Нижнекамск","МБУДО ДМХШ \"Мечта\"","ученик","Муз.П.Булахова, Сл.неизвестного автора «Не хочу»","преп. Малиновская Ольга Николаевна, конц. Короткова Инга Валентиновна",3]
[6,"Кульча Дарья Андреевна 13.11.2000 г. 17 лет","Нижнекамск","Нижнекамский музыкальный колледж им.С.Сайдашева","профессионал ","А. Драгомыжский «Шестнадцать лет» (2:31)","преп. Шарафутдинова Зульфия Венеровна, конц. Гнатишина Ирина Викторовна",3]
[7,"Шарапов Разиль Мехмедович 18 лет","Нижнекамск","Нижнекамский музыкальный колледж им.С.Сайдашева","профессионал ","А. Гречанинов \"О, если будешь ты дитя моей женой\" 2.30","преп. Шарафутдинова Зульфия Венеровна, конц. Сагидуллина Рэмзия Гаптелгазизовна",3]
[8,"Карпова Диана Ивановна 18 лет","Нижнекамск","Нижнекамский музыкальный колледж им.С.Сайдашева","профессионал ","П.Булахов\"И нет в мире очей\" 2.40","преп. Шарафутдинова Зульфия Венеровна, конц. Сагидуллина Рэмзия Гаптелгазизовна",3]
[9,"Калимуллина Диляра Фанисовна 18 лет","Альметьевск","Альметьевский музыкальный колледж им.Ф.З.Яруллина  ","профессионал ","Ж.Б.Векерлен «Пробуждение» 3 мин","Преп. -Кашапова Раиса Равиловна, Конц.  Тимкина Гузель Борисовна"]
[10,"Тахавиева Наиля Ильнаровна 16 лет","Нижнекамск","Нижнекамский музыкальный колледж им.С.Сайдашева","профессионал ","Р.Еникеев \" ак дулкыннар\" 2,30","преп. Шарафутдинова Зульфия Венеровна, конц. Сагидуллина Рэмзия Гаптелгазизовна"]
[11,"Слепова Яна Викторовна 27.11.2000, 17 лет","Нижнекамск","Нижнекамский музыкальный колледж им.С.Сайдашева","профессионал ","Романс Настеньки из к\\ф \" О бедном гусаре замолвите слово\" Муз.А.Петрова,стихи М.Цветаевой","преп. Шарафутдинова Зульфия Венеровна, конц. Сагидуллина Рэмзия Гаптелгазизовна"]
[]
[]
[]
[{"$nulls":7},{"$f":"SUM(H84:H91)","v":24}]
[null,"Юношеская категория"]
[1,"Газизова Диляра Рашидовна 04.06.1998","Нижнекамск","Нижнекамский музыкальный колледж им.С.Сайдашева","профессионал","Н.Листов «Я помню вальса звук прелестный»","преп.Кириллова Кристина Петровна , конц. Коркина Эльмира Фирусовна",3]
[2,"Евдокимова Гузель Борисовна ","Нижнекамск","Нижнекамск","профессионал","М.Ипполитов-Иванов -«Желтенькая птичка»","Преп. Большакова  Юлия Владимировна, конц. Каюмова Язгулем Камилевна",3]
[3,"Кирпу Светлана Андреевна 10.10.1998","Набережные Челны","ГАПОУ Набережночелнинский колледж искусств","профессионал","С.Прокофьев «Зеленая роща» (3мин)","преп. Додарбеков Алишер Мансурджонович, конц. Кирпу Лилия Ивановна",{"$f":"SUM(H100:H101)","v":6}]
[4,"Фатхутдинова Ляйсан Ирековна 20.03.1999","Набережные Челны","ГАПОУ Набережночелнинский колледж искусств","профессионал","муз.Танеева \"Фонтаны\" ","преп. Филиппова Людмила Алексеевна, конц. Алиева Севда Назимовна"]
[5,"Шаймарданова Айгуль Нафисовна 17.11.1997 ","Нижнекамск","Нижнекамский музыкальный колледж им.С.Сайдашева","профессионал","П. Булахов - \"Не хочу!\"","преп. Кожевникова Олеся Федоровна, конц. Махмутова Дина Ахатовна"]
[6,"Мухтаров Хайдар Хадисович","Нижнекамск","Нижнекамский музыкальный колледж им.С.Сайдашева","профессионал ","П.Чайковский, А.Толстой \"Средь шумного бала\"","преп. Шарафутдинова Зульфия Венеровна, конц. Сагидуллина Рэмзия Гаптелгазизовна"]
[7,"Нуриева Лейсан Азаматовна 01.06.1995","Сармановский муниципальный район","МБУ Сармановского МР «Централизованная клубная система» (РДК); ","любитель"," Муз. С. Сайдашева, сл. Х. Фатхуллина «Жаворонок» ","преп. и конц. Фартдинова Райса Ибрагимовна"]
[]
[{"$nulls":7},3]
[]
[]
[null,"Взрослая возрастная категория"]
[1,"Уразаев Рафис Язкарович ","Сармановский муниципальный район","МБУ Сармановского МР «Централизованная клубная система» ","любитель","Муз. Р. Яхина, сл. З. Туфайловой  «Бу таңнар иртәләр» 2,5 минут","преп.и конц.Фартдинова Райса Ибрагимовна",3]
[2,"Зиннурова Лайсан Гилмутдиновна","Сармановский муниципальный район","МБУ Сармановского МР «Централизованная клубная система» ","любитель","1.      Муз. С. Сайдашева, сл. Г. Гузеева «Халиса» (3 мин.)","преп.и конц.Фартдинова Райса Ибрагимовна",3]
[3,"Большакова Юлия Владимировна","Нижнекамск","ГАПОУ «Нижнекамский музыкальный колледж им.С.Сайдашева»","профессионал","П. И. Чайковский \"Ночь\" (3 мин.)","конц. Сагидуллина Рамзия Гаптелгазизовна",3]
[4,"Шарафутдинова Фирдаус Гумаровна ","г.Ишимбай Башкортостан","Солистка народного хора ветеранов \"Радуга\" ",null,"Прощальный вальс из к/ф \"Мост Ватерлоо\"","конц. Сагидуллина Рэмзия Гаптелгазизовна",3]
[5,"Карасёва Юлия Сергеевна","Нижнекамск","МБУ ДО «Камско-Полянская ДМШ» НМР РТ","профессионал","Муз.Н. Зубова, стихи  М. Пойгина “Побудь со мной!”","конц. Парфенова  Оксана  Владимировна",3]
[6,"Муравьева Юлия Геннадьевна","Набережные Челны","МАУ ДО «ДЕТСКАЯ  ШКОЛА искусств №13»","профессионал","« Я ехала домой» муз.и сл. Марии Пуаре, 1:20","конц. Кирпу Лилия Ивановна"]
[7,"Коркина Эльмира Фирусовна","Нижнекамск","ГАПОУ «Нижнекамский музыкальный колледж им.С.Сайдашева»","профессионал","Слова и музыка А. Обухова “Калитка”","конц. Махмутова Дина Абдулахятовна"]
[8,"Амирова Алия Зуфаковна 23,12,1989 - 28 лет","Нижнекамск","МБУ ДО «ДМШ №1» НМР РТ","профессионал","Р.Яхин- «Ышанам». 2:30","конц. Гнатишина Ирина Викторовна"]
[{"$nulls":5}," ",null,{"$f":"SUM(H112:H116)","v":15}]
[null,"вокальные ансамбли "]
[1,"младшая дуэт Гилаев Акмаль и Валиков Егор","Нижнекамск","МБУДО ДМХШ \"Мечта\"","ученик","Муз.М.Кольяшкина,Сл.В.Татаринова «Солдатик оловянный»","преп. Малиновская Ольга Николаевна, конц. Колчанова Капитолина Николаевна",3]
[{"$nulls":7},{"$f":"H36+H54+H73+H78+H98+H102+H108+H120+H122","v":153},{"$f":"H123/60","v":2.55}]
[1,"1 средняя Вокальный ансамбль \"Карусель\"","Нижнекамск","МБУДО ДМХШ \"Мечта\"","ученик"," Й.Брамс «Воскресенье»","преп. Нурмухамедова Гульнара Рустемовна, конц.Колчанова Капитолина Николаевна "]
[2,"1 средняя Вокальный ансамбль «Stella»","Набережные Челны","Муниципальное бюджетное учреждение дополнительного образования «ДЕТСКАЯ МУЗЫКАЛЬНАЯ ШКОЛА №3»","ученик","Ф. Шуберт, сл. В. Мюллера перевод С. Заяцкого из цикла «Зимний путь», «Бурное утро»","преп. Шишкина Анна Анатольевна, конц. Галиханова Регина Габдулловна"]
[3,"1 средняя Вокальный ансамбль «Челнинские звездочки»","Набережные Челны","Муниципальное бюджетное учреждение дополнительного образования «ДЕТСКАЯ МУЗЫКАЛЬНАЯ ШКОЛА №3»","ученик","А. Аренский, сл. А.Майкова «Спи, дитя мое, усни»","преп. Булатова Ирина Сергеевна, конц. Назмеева Камила Керимовна"]
[]
[]
[]
[1,"2 средняя вокальный ансамбль «Рулада»","Нижнекамск","МБУДО ДМХШ \"Мечта\"","ученик","слова – А. Плещеева музыка – Р. Глиэра \"Вечер\"","преп. Игошина Виктория Васильевна, конц. Нырова Антонина Викторовна"]
[2,"2 средняя Дуэт  Шайгаллямова Лейла, Аскарова Диляра\n","Набережные Челны","МАУ ДО «Детская школа искусств№13","ученик","«Горные вершины» А.Рубинштейн - 3мин","преп. Вершинина Елена Рафиковна, конц. Кирпу Лилия Ивановна"]
[3,"2 средняя Вокально-хоровой  ансамбль “Созвучие” ( 12 человек)","Нижнекамск","МБУ ДО «Камско-Полянская ДМШ» НМР РТ","ученик","Л.Хайрутдинова“Романс”(Вокализ) Исполнительская редакция Г.Гимаевой . ( 3.20 мин)","Преп. Евстифеева Галина Борисовна, конц. Файзуллина Ирина Рафаэльевна"]
[1,"Старшая вокальный ансамбль \"Радуга\"","Нижнекамск","МБУДО ДМХШ \"Мечта\"","ученик","Муз.Е.Крылатова, Сл.А.Сухановой «Господи помилуй»","преп. Малиновская Ольга Николаевна, конц. Нырова Антонина Викторовна"]
[]
[1,"Взрослая Вокальный ансамбль народного хора ветеранов «Надежда»/9 участников","Нижнекамск","МАУ «Центр культурных инициатив»","любитель","«Звёзды на небе» муз. В.Борисов, сл. Е.Дитерихс","рук.и конц. Шарапов Габдулла Валиуллович"]
[2,"Взрослая Дуэт Евгения Смоленкова и Рустам Закиров","Нижнекамск","солисты ансамбля «Забава»","любитель","Казачий романс «Погубили меня твои чёрны глаза» на слова А. Кольцова в народном  распеве 3:30","рук. Матвеева Ирина Валентиновна, Рустам Закиров (Гитара), Оксана Добрынина (скрипка)"]
[3,"Взрослая Дуэт Шарафутдинова Фирдаус и Шарафутдинова Зульфия","Нижнекамск",null,null,"Муз. и сл. Н. Пашкова \"Не уезжай, ты мой голубчик\"","конц. Сагидуллина Рэмзия Гаптелгазизовна"]
[4,"В/а \"Вдохновение\"","Нижнекамск","МБУДО ДМХШ \"Мечта\"","профессионал","\"Храни меня, мой талисман\" Б.Ягуда"]

{"sheet":"Лист2","index":1,"n_rows":0,"n_cols":0,"rows_kept":0}

{"sheet":"Лист3","index":2,"n_rows":0,"n_cols":0,"rows_kept":0}